[Event "Titled Tuesday Blitz March 08 Early 2022"]
[White "Odegov, Artem"]
[Black "Domingo Nunez, Alejandro"]
[WhiteFideId "34183644"]
[BlackFideId "22245561"]
[WhiteElo "2286"]
[BlackElo "2215"]
[Result "1-0"]
[Round "10"]
[TimeControl "180+1"]
[Date "2022.03.09"]
[WhiteClock "0:00:03"]
[BlackClock "0:00:02"]

1. d4 {[%clk 0:02:44]}  g6 {[%clk 0:03:00]} 2. c4 {[%clk 0:02:43]}  Bg7 {[%clk 0:03:01]} 3. Nc3 {[%clk 0:02:43]}  d6 {[%clk 0:03:01]} 4. e4 {[%clk 0:02:43]}  Nd7 {[%clk 0:03:01]} 5. Be3 {[%clk 0:02:42]}  e5 {[%clk 0:03:02]} 6. d5 {[%clk 0:02:38]}  a5 {[%clk 0:03:02]} 7. Bd3 {[%clk 0:02:38]}  Nc5 {[%clk 0:03:02]} 8. Bc2 {[%clk 0:02:38]}  b6 {[%clk 0:03:02]} 9. Nge2 {[%clk 0:02:36]}  h5 {[%clk 0:02:58]} 10. Qd2 {[%clk 0:02:34]}  Bh6 {[%clk 0:02:54]} 11. O-O {[%clk 0:02:33]}  Bg4 {[%clk 0:02:48]} 12. f4 {[%clk 0:02:27]}  Qe7 {[%clk 0:02:44]} 13. fxe5 {[%clk 0:02:18]}  Bxe3+ {[%clk 0:02:43]} 14. Qxe3 {[%clk 0:02:19]}  Qxe5 {[%clk 0:02:44]} 15. Nd4 {[%clk 0:02:18]}  Bd7 {[%clk 0:02:42]} 16. Nf3 {[%clk 0:02:10]}  Qe7 {[%clk 0:02:39]} 17. Rae1 {[%clk 0:02:10]}  O-O-O {[%clk 0:01:59]} 18. e5 {[%clk 0:02:09]}  Bg4 {[%clk 0:01:49]} 19. exd6 {[%clk 0:02:04]}  Qxd6 {[%clk 0:01:48]} 20. Ne5 {[%clk 0:02:03]}  Nh6 {[%clk 0:01:45]} 21. Nb5 {[%clk 0:01:56]}  Qf8 {[%clk 0:01:34]} 22. Nxg6 {[%clk 0:01:48]}  fxg6 {[%clk 0:01:20]} 23. Rxf8 {[%clk 0:01:49]}  Rdxf8 {[%clk 0:01:21]} 24. Bxg6 {[%clk 0:01:15]}  Bd7 {[%clk 0:01:17]} 25. Na7+ {[%clk 0:01:02]}  Kb7 {[%clk 0:01:11]} 26. Nc6 {[%clk 0:01:02]}  Ng4 {[%clk 0:00:33]} 27. Qg3 {[%clk 0:00:51]}  Rhg8 {[%clk 0:00:26]} 28. Ne7 {[%clk 0:00:40]}  h4 {[%clk 0:00:22]} 29. Qc3 {[%clk 0:00:24]}  Rh8 {[%clk 0:00:18]} 30. h3 {[%clk 0:00:23]}  Nf6 {[%clk 0:00:15]} 31. Bb1 {[%clk 0:00:22]}  Rf7 {[%clk 0:00:06]} 32. Ng6 {[%clk 0:00:22]}  Rg8 {[%clk 0:00:06]} 33. Rf1 {[%clk 0:00:11]}  Nfe4 {[%clk 0:00:05]} 34. Bxe4 {[%clk 0:00:08]}  Nxe4 {[%clk 0:00:06]} 35. Qd3 {[%clk 0:00:07]}  Rxf1+ {[%clk 0:00:05]} 36. Kxf1 {[%clk 0:00:08]}  Ng3+ {[%clk 0:00:05]} 37. Kg1 {[%clk 0:00:04]}  Bf5 {[%clk 0:00:05]} 38. Qf3 {[%clk 0:00:04]}  Be4 {[%clk 0:00:06]} 39. Qf7 {[%clk 0:00:03]}  Rxg6 {[%clk 0:00:05]} 40. d6 {[%clk 0:00:03]}  Rxd6 {[%clk 0:00:06]} 41. Kf2 {[%clk 0:00:04]}  Rd2+ {[%clk 0:00:06]} 42. Ke3 {[%clk 0:00:04]}  Rd3+ {[%clk 0:00:05]} 43. Kf2 {[%clk 0:00:04]}  Bc6 {[%clk 0:00:04]} 44. Qh7 {[%clk 0:00:03]}  Rd2+ {[%clk 0:00:04]} 45. Ke3 {[%clk 0:00:03]}  Rxg2 {[%clk 0:00:05]} 46. c5 {[%clk 0:00:02]}  b5 {[%clk 0:00:04]} 47. Kf4 {[%clk 0:00:01]}  Rf2+ {[%clk 0:00:04]} 48. Ke5 {[%clk 0:00:02]}  Rxb2 {[%clk 0:00:04]} 49. Qxh4 {[%clk 0:00:01]}  Re2+ {[%clk 0:00:03]} 50. Kf6 {[%clk 0:00:01]}  Rf2+ {[%clk 0:00:03]} 51. Ke5 {[%clk 0:00:02]}  Rf5+ {[%clk 0:00:03]} 52. Kd4 {[%clk 0:00:02]}  Rd5+ {[%clk 0:00:03]} 53. Kc3 {[%clk 0:00:02]}  Ne2+ {[%clk 0:00:03]} 54. Kb2 {[%clk 0:00:02]}  Rd2+ {[%clk 0:00:03]} 55. Kb1 {[%clk 0:00:02]}  Be4+ {[%clk 0:00:02]} 56. Qxe4+ {[%clk 0:00:02]}  c6 {[%clk 0:00:03]} 57. Qe3 {[%clk 0:00:03]}  Rd1+ {[%clk 0:00:03]} 58. Kc2 {[%clk 0:00:02]}  Ra1 {[%clk 0:00:02]} 59. Qe7+ {[%clk 0:00:02]}  Ka6 {[%clk 0:00:02]} 60. Kb2 {[%clk 0:00:03]}  Re1 {[%clk 0:00:02]} 61. Qd8 {[%clk 0:00:03]}  Nf4 {[%clk 0:00:02]} 62. Qb6# {[%clk 0:00:03]} 1-0


[Site "https://www.chess.com"]

[Event "Titled Tuesday Blitz March 08 Early 2022"]
[White "Piliczewski, Bogusz"]
[Black "Tarini, Goyal"]
[WhiteFideId "1104144"]
[BlackFideId "5082749"]
[WhiteElo "1896"]
[BlackElo "1772"]
[Result "0-1"]
[Round "10"]
[TimeControl "180+1"]
[Date "2022.03.09"]
[WhiteClock "0:00:01"]
[BlackClock "0:00:56"]

1. d4 {[%clk 0:03:00]}  d5 {[%clk 0:02:58]} 2. Nf3 {[%clk 0:03:00]}  Nf6 {[%clk 0:02:58]} 3. c4 {[%clk 0:02:59]}  dxc4 {[%clk 0:02:57]} 4. Nc3 {[%clk 0:02:57]}  e6 {[%clk 0:02:56]} 5. e3 {[%clk 0:02:56]}  c5 {[%clk 0:02:55]} 6. Bxc4 {[%clk 0:02:56]}  Nc6 {[%clk 0:02:55]} 7. O-O {[%clk 0:02:54]}  Be7 {[%clk 0:02:54]} 8. Qe2 {[%clk 0:02:53]}  O-O {[%clk 0:02:53]} 9. Rd1 {[%clk 0:02:52]}  a6 {[%clk 0:02:10]} 10. a4 {[%clk 0:02:48]}  Qa5 {[%clk 0:01:53]} 11. Bd2 {[%clk 0:02:43]}  Qb6 {[%clk 0:01:49]} 12. b3 {[%clk 0:02:28]}  cxd4 {[%clk 0:01:44]} 13. exd4 {[%clk 0:02:24]}  Nb4 {[%clk 0:01:37]} 14. Rac1 {[%clk 0:02:18]}  Bd7 {[%clk 0:01:35]} 15. Be3 {[%clk 0:02:10]}  Nbd5 {[%clk 0:01:30]} 16. Bg5 {[%clk 0:01:57]}  Ba3 {[%clk 0:01:22]} 17. Rc2 {[%clk 0:01:50]}  Bc6 {[%clk 0:01:15]} 18. Ne5 {[%clk 0:01:30]}  Nxc3 {[%clk 0:01:07]} 19. Rxc3 {[%clk 0:01:28]}  Ne4 {[%clk 0:01:07]} 20. Qg4 {[%clk 0:00:08]}  Nxc3 {[%clk 0:01:05]} 21. Bf6 {[%clk 0:00:08]}  g6 {[%clk 0:01:03]} 22. Qg5 {[%clk 0:00:07]}  Ne4 {[%clk 0:01:02]} 23. Qh4 {[%clk 0:00:03]}  Nxf6 {[%clk 0:01:00]} 24. Qxf6 {[%clk 0:00:03]}  Qd8 {[%clk 0:00:58]} 25. Qf4 {[%clk 0:00:01]}  Bd6 {[%clk 0:00:56]} 0-1


[Site "https://www.chess.com"]

[Event "Titled Tuesday Blitz March 08 Early 2022"]
[White "Pinheiro, Iung Alicio de O."]
[Black "Kosteniuk, Alexandra"]
[WhiteFideId "2104350"]
[BlackFideId "4128125"]
[WhiteElo "2557"]
[BlackElo "2469"]
[Result "0-1"]
[Round "10"]
[TimeControl "180+1"]
[Date "2022.03.09"]
[WhiteClock "0:00:09"]
[BlackClock "0:00:13"]

1. c4 {[%clk 0:03:00]}  e5 {[%clk 0:02:59]} 2. g3 {[%clk 0:03:00]}  Nf6 {[%clk 0:02:58]} 3. Bg2 {[%clk 0:03:00]}  d5 {[%clk 0:02:59]} 4. cxd5 {[%clk 0:03:01]}  Nxd5 {[%clk 0:03:00]} 5. Nf3 {[%clk 0:03:01]}  Nc6 {[%clk 0:02:59]} 6. O-O {[%clk 0:03:01]}  Nb6 {[%clk 0:02:59]} 7. d3 {[%clk 0:02:59]}  Be7 {[%clk 0:03:00]} 8. Nbd2 {[%clk 0:02:58]}  O-O {[%clk 0:02:58]} 9. a3 {[%clk 0:02:58]}  Be6 {[%clk 0:02:56]} 10. b4 {[%clk 0:02:52]}  f6 {[%clk 0:02:56]} 11. Bb2 {[%clk 0:02:52]}  Qd7 {[%clk 0:02:54]} 12. Qc2 {[%clk 0:02:51]}  a5 {[%clk 0:02:53]} 13. b5 {[%clk 0:02:49]}  Nd8 {[%clk 0:02:53]} 14. a4 {[%clk 0:02:22]}  Nf7 {[%clk 0:02:53]} 15. e4 {[%clk 0:02:08]}  Rfd8 {[%clk 0:02:51]} 16. d4 {[%clk 0:02:08]}  exd4 {[%clk 0:02:44]} 17. Nxd4 {[%clk 0:02:08]}  Bh3 {[%clk 0:02:38]} 18. Nc4 {[%clk 0:01:55]}  Nxc4 {[%clk 0:02:30]} 19. Qxc4 {[%clk 0:01:54]}  Bxg2 {[%clk 0:02:25]} 20. Kxg2 {[%clk 0:01:55]}  Bd6 {[%clk 0:02:24]} 21. Nf5 {[%clk 0:01:51]}  Kh8 {[%clk 0:02:21]} 22. Rad1 {[%clk 0:01:50]}  Qe8 {[%clk 0:02:15]} 23. f4 {[%clk 0:01:45]}  Rac8 {[%clk 0:02:09]} 24. Rfe1 {[%clk 0:01:44]}  Bf8 {[%clk 0:02:00]} 25. Rxd8 {[%clk 0:01:36]}  Rxd8 {[%clk 0:02:00]} 26. Re2 {[%clk 0:01:33]}  Qd7 {[%clk 0:01:44]} 27. Bc3 {[%clk 0:01:19]}  Qd3 {[%clk 0:01:29]} 28. Qxd3 {[%clk 0:01:14]}  Rxd3 {[%clk 0:01:30]} 29. Bxa5 {[%clk 0:01:15]}  b6 {[%clk 0:01:31]} 30. Be1 {[%clk 0:01:15]}  g6 {[%clk 0:01:28]} 31. Ne3 {[%clk 0:01:14]}  Bc5 {[%clk 0:00:46]} 32. Nd5 {[%clk 0:01:13]}  f5 {[%clk 0:00:46]} 33. Nxc7 {[%clk 0:01:07]}  fxe4 {[%clk 0:00:42]} 34. Rxe4 {[%clk 0:01:08]}  Nd6 {[%clk 0:00:43]} 35. Re2 {[%clk 0:01:03]}  Nf5 {[%clk 0:00:40]} 36. Bf2 {[%clk 0:01:03]}  Bxf2 {[%clk 0:00:38]} 37. Kxf2 {[%clk 0:01:04]}  Ra3 {[%clk 0:00:35]} 38. Re4 {[%clk 0:00:55]}  Ra2+ {[%clk 0:00:35]} 39. Kf3 {[%clk 0:00:54]}  Ra3+ {[%clk 0:00:35]} 40. Ke2 {[%clk 0:00:50]}  Ra2+ {[%clk 0:00:35]} 41. Kd3 {[%clk 0:00:50]}  Rxh2 {[%clk 0:00:34]} 42. g4 {[%clk 0:00:50]}  Rh3+ {[%clk 0:00:29]} 43. Kd2 {[%clk 0:00:47]}  Nd6 {[%clk 0:00:30]} 44. Rd4 {[%clk 0:00:46]}  Nf7 {[%clk 0:00:29]} 45. Rd7 {[%clk 0:00:45]}  Kg8 {[%clk 0:00:29]} 46. Ne6 {[%clk 0:00:42]}  h5 {[%clk 0:00:28]} 47. g5 {[%clk 0:00:40]}  h4 {[%clk 0:00:26]} 48. Rb7 {[%clk 0:00:39]}  Rh2+ {[%clk 0:00:25]} 49. Ke3 {[%clk 0:00:39]}  h3 {[%clk 0:00:21]} 50. Kf3 {[%clk 0:00:38]}  Ra2 {[%clk 0:00:20]} 51. Rb8+ {[%clk 0:00:38]}  Kh7 {[%clk 0:00:20]} 52. Nf8+ {[%clk 0:00:37]}  Kg7 {[%clk 0:00:20]} 53. Ne6+ {[%clk 0:00:38]}  Kh7 {[%clk 0:00:20]} 54. Rc8 {[%clk 0:00:35]}  h2 {[%clk 0:00:20]} 55. Rc1 {[%clk 0:00:35]}  Nd6 {[%clk 0:00:20]} 56. Nd4 {[%clk 0:00:33]}  Rxa4 {[%clk 0:00:19]} 57. Ke3 {[%clk 0:00:32]}  Ra3+ {[%clk 0:00:16]} 58. Kf2 {[%clk 0:00:29]}  Ne4+ {[%clk 0:00:16]} 59. Kg2 {[%clk 0:00:29]}  Ra2+ {[%clk 0:00:16]} 60. Kf3 {[%clk 0:00:23]}  Nf2 {[%clk 0:00:16]} 61. Rc7+ {[%clk 0:00:16]}  Kg8 {[%clk 0:00:16]} 62. Rc8+ {[%clk 0:00:17]}  Kf7 {[%clk 0:00:16]} 63. Rc7+ {[%clk 0:00:17]}  Ke8 {[%clk 0:00:16]} 64. Rh7 {[%clk 0:00:17]}  h1=Q+ {[%clk 0:00:16]} 65. Rxh1 {[%clk 0:00:18]}  Nxh1 {[%clk 0:00:17]} 66. Nc6 {[%clk 0:00:15]}  Rb2 {[%clk 0:00:15]} 67. Ne5 {[%clk 0:00:16]}  Rxb5 {[%clk 0:00:14]} 68. Nxg6 {[%clk 0:00:16]}  Kf7 {[%clk 0:00:15]} 69. Nh4 {[%clk 0:00:16]}  Rb3+ {[%clk 0:00:13]} 70. Kg4 {[%clk 0:00:15]}  Nf2+ {[%clk 0:00:13]} 71. Kh5 {[%clk 0:00:14]}  Rh3 {[%clk 0:00:13]} 72. f5 {[%clk 0:00:14]}  Ne4 {[%clk 0:00:12]} 73. Kg4 {[%clk 0:00:13]}  Nxg5 {[%clk 0:00:13]} 74. Kxg5 {[%clk 0:00:13]}  b5 {[%clk 0:00:13]} 75. Ng2 {[%clk 0:00:12]}  Rg3+ {[%clk 0:00:12]} 76. Kf4 {[%clk 0:00:11]}  Rxg2 {[%clk 0:00:13]} 77. Ke5 {[%clk 0:00:09]}  b4 {[%clk 0:00:13]} 0-1


[Site "https://www.chess.com"]

[Event "Titled Tuesday Blitz March 08 Early 2022"]
[White "Popadic, Dragan"]
[Black "Zanette, Edgard Vinicius"]
[WhiteFideId "913650"]
[BlackFideId "2109263"]
[WhiteElo "2222"]
[BlackElo "2182"]
[Result "1-0"]
[Round "10"]
[TimeControl "180+1"]
[Date "2022.03.09"]
[WhiteClock "0:01:13"]
[BlackClock "0:00:10"]

1. e4 {[%clk 0:03:00]}  e5 {[%clk 0:02:34]} 2. d4 {[%clk 0:03:00]}  exd4 {[%clk 0:02:34]} 3. Qxd4 {[%clk 0:03:00]}  Nc6 {[%clk 0:02:34]} 4. Qe3 {[%clk 0:03:00]}  Nf6 {[%clk 0:02:34]} 5. Nc3 {[%clk 0:02:59]}  Bb4 {[%clk 0:02:34]} 6. Bd2 {[%clk 0:02:59]}  O-O {[%clk 0:02:34]} 7. O-O-O {[%clk 0:02:59]}  Re8 {[%clk 0:02:35]} 8. Qg3 {[%clk 0:02:59]}  d6 {[%clk 0:02:31]} 9. f3 {[%clk 0:02:58]}  Be6 {[%clk 0:02:26]} 10. h4 {[%clk 0:02:57]}  Ne5 {[%clk 0:02:22]} 11. Nh3 {[%clk 0:02:55]}  Bc4 {[%clk 0:02:15]} 12. f4 {[%clk 0:02:53]}  Nh5 {[%clk 0:02:06]} 13. Qe1 {[%clk 0:02:45]}  Bxf1 {[%clk 0:02:04]} 14. fxe5 {[%clk 0:02:43]}  Bxg2 {[%clk 0:01:59]} 15. Rh2 {[%clk 0:02:35]}  Bf3 {[%clk 0:01:52]} 16. exd6 {[%clk 0:02:26]}  Bxd1 {[%clk 0:01:50]} 17. Qxd1 {[%clk 0:02:24]}  Qxd6 {[%clk 0:01:48]} 18. Rg2 {[%clk 0:02:13]}  Rad8 {[%clk 0:01:37]} 19. Qxh5 {[%clk 0:02:10]}  Bxc3 {[%clk 0:01:30]} 20. Bxc3 {[%clk 0:02:09]}  g6 {[%clk 0:01:25]} 21. Qf3 {[%clk 0:02:00]}  Rxe4 {[%clk 0:01:23]} 22. Rg1 {[%clk 0:01:57]}  Rxh4 {[%clk 0:01:16]} 23. Ng5 {[%clk 0:01:54]}  Qf4+ {[%clk 0:01:07]} 24. Qxf4 {[%clk 0:01:48]}  Rxf4 {[%clk 0:01:08]} 25. Nxh7 {[%clk 0:01:46]}  Rd6 {[%clk 0:00:49]} 26. Be5 {[%clk 0:01:43]}  Rf5 {[%clk 0:00:40]} 27. Bxd6 {[%clk 0:01:42]}  cxd6 {[%clk 0:00:40]} 28. Ng5 {[%clk 0:01:42]}  d5 {[%clk 0:00:33]} 29. Kd2 {[%clk 0:01:39]}  Kg7 {[%clk 0:00:27]} 30. Ke3 {[%clk 0:01:38]}  f6 {[%clk 0:00:25]} 31. Nf3 {[%clk 0:01:37]}  Rh5 {[%clk 0:00:23]} 32. Rg2 {[%clk 0:01:33]}  Kf7 {[%clk 0:00:21]} 33. Nd4 {[%clk 0:01:30]}  a6 {[%clk 0:00:19]} 34. a4 {[%clk 0:01:26]}  Rh3+ {[%clk 0:00:17]} 35. Kd2 {[%clk 0:01:25]}  f5 {[%clk 0:00:17]} 36. a5 {[%clk 0:01:20]}  Kf6 {[%clk 0:00:15]} 37. Nb3 {[%clk 0:01:20]}  Ke5 {[%clk 0:00:14]} 38. Nc5 {[%clk 0:01:19]}  g5 {[%clk 0:00:14]} 39. Rxg5 {[%clk 0:01:18]}  Rh2+ {[%clk 0:00:13]} 40. Kc3 {[%clk 0:01:16]}  Rh3+ {[%clk 0:00:13]} 41. Nd3+ {[%clk 0:01:15]}  Ke4 {[%clk 0:00:11]} 42. Rg7 {[%clk 0:01:14]}  f4 {[%clk 0:00:10]} 43. Re7+ {[%clk 0:01:13]} 1-0


[Site "https://www.chess.com"]

[Event "Titled Tuesday Blitz March 08 Early 2022"]
[White "Qashashvili, Alexandre"]
[Black "Dilmukhametov, Artur"]
[WhiteFideId "13600842"]
[BlackFideId "24179922"]
[WhiteElo "2316"]
[BlackElo "2237"]
[Result "1-0"]
[Round "10"]
[TimeControl "180+1"]
[Date "2022.03.09"]
[WhiteClock "0:00:58"]
[BlackClock "0:00:45"]

1. e4 {[%clk 0:03:00]}  e6 {[%clk 0:02:56]} 2. d4 {[%clk 0:03:00]}  d5 {[%clk 0:02:52]} 3. Nc3 {[%clk 0:03:00]}  Bb4 {[%clk 0:02:49]} 4. e5 {[%clk 0:02:59]}  c5 {[%clk 0:02:45]} 5. dxc5 {[%clk 0:03:00]}  Bxc5 {[%clk 0:02:45]} 6. Nf3 {[%clk 0:02:59]}  Qb6 {[%clk 0:02:44]} 7. Qd2 {[%clk 0:02:54]}  Nc6 {[%clk 0:02:36]} 8. a3 {[%clk 0:02:53]}  a5 {[%clk 0:02:35]} 9. Na4 {[%clk 0:02:51]}  Qa7 {[%clk 0:02:28]} 10. Nxc5 {[%clk 0:02:46]}  Qxc5 {[%clk 0:02:27]} 11. c3 {[%clk 0:02:44]}  Bd7 {[%clk 0:02:21]} 12. Bd3 {[%clk 0:02:44]}  Nge7 {[%clk 0:02:20]} 13. O-O {[%clk 0:02:42]}  O-O {[%clk 0:02:20]} 14. Qe2 {[%clk 0:02:39]}  Ng6 {[%clk 0:02:15]} 15. Be3 {[%clk 0:02:22]}  Qe7 {[%clk 0:02:09]} 16. b4 {[%clk 0:02:21]}  axb4 {[%clk 0:02:07]} 17. cxb4 {[%clk 0:02:20]}  f6 {[%clk 0:02:02]} 18. Bc5 {[%clk 0:02:19]}  Qf7 {[%clk 0:01:58]} 19. Bxf8 {[%clk 0:02:16]}  Rxf8 {[%clk 0:01:57]} 20. exf6 {[%clk 0:02:15]}  Qxf6 {[%clk 0:01:56]} 21. b5 {[%clk 0:02:04]}  Nd4 {[%clk 0:01:50]} 22. Nxd4 {[%clk 0:02:04]}  Qxd4 {[%clk 0:01:50]} 23. Bxg6 {[%clk 0:02:03]}  hxg6 {[%clk 0:01:50]} 24. a4 {[%clk 0:02:03]}  b6 {[%clk 0:01:49]} 25. a5 {[%clk 0:02:00]}  bxa5 {[%clk 0:01:48]} 26. Rxa5 {[%clk 0:02:01]}  Rb8 {[%clk 0:01:46]} 27. Rb1 {[%clk 0:01:49]}  Kh7 {[%clk 0:01:33]} 28. h3 {[%clk 0:01:44]}  Rb6 {[%clk 0:01:27]} 29. Qc2 {[%clk 0:01:25]}  Qc4 {[%clk 0:01:19]} 30. Qxc4 {[%clk 0:01:16]}  dxc4 {[%clk 0:01:19]} 31. Rb4 {[%clk 0:01:13]}  c3 {[%clk 0:01:18]} 32. Rc4 {[%clk 0:01:13]}  Rxb5 {[%clk 0:01:13]} 33. Rxb5 {[%clk 0:01:12]}  Bxb5 {[%clk 0:01:13]} 34. Rxc3 {[%clk 0:01:13]}  Kh6 {[%clk 0:01:08]} 35. f4 {[%clk 0:01:07]}  g5 {[%clk 0:01:07]} 36. fxg5+ {[%clk 0:01:07]}  Kxg5 {[%clk 0:01:07]} 37. Rc5+ {[%clk 0:01:07]}  Kh6 {[%clk 0:00:58]} 38. Rxb5 {[%clk 0:01:08]}  g5 {[%clk 0:00:57]} 39. Rb6 {[%clk 0:01:07]}  Kh5 {[%clk 0:00:56]} 40. Rxe6 {[%clk 0:01:08]}  g4 {[%clk 0:00:56]} 41. hxg4+ {[%clk 0:01:08]}  Kxg4 {[%clk 0:00:57]} 42. Kf2 {[%clk 0:01:08]}  Kf5 {[%clk 0:00:56]} 43. Ra6 {[%clk 0:01:08]}  Ke5 {[%clk 0:00:56]} 44. Kf3 {[%clk 0:01:06]}  Kd5 {[%clk 0:00:56]} 45. Kf4 {[%clk 0:01:05]}  Kc5 {[%clk 0:00:56]} 46. g4 {[%clk 0:01:06]}  Kb5 {[%clk 0:00:55]} 47. Re6 {[%clk 0:01:06]}  Kc5 {[%clk 0:00:55]} 48. g5 {[%clk 0:01:06]}  Kd5 {[%clk 0:00:49]} 49. Re5+ {[%clk 0:01:06]}  Kd6 {[%clk 0:00:48]} 50. g6 {[%clk 0:01:07]}  Kd7 {[%clk 0:00:47]} 51. g7 {[%clk 0:01:08]}  Kd6 {[%clk 0:00:47]} 52. g8=Q {[%clk 0:01:09]}  Kc7 {[%clk 0:00:48]} 53. Qg6 {[%clk 0:01:01]}  Kd7 {[%clk 0:00:47]} 54. Rf5 {[%clk 0:00:59]}  Kd8 {[%clk 0:00:46]} 55. Rf7 {[%clk 0:00:59]}  Ke8 {[%clk 0:00:45]} 56. Qg8# {[%clk 0:00:58]} 1-0


[Site "https://www.chess.com"]

[Event "Titled Tuesday Blitz March 08 Early 2022"]
[White "Quirke, Jeffrey"]
[Black "Vifleemskaia, Svetlana"]
[WhiteFideId "2013029"]
[BlackFideId "4129490"]
[WhiteElo "2137"]
[BlackElo "1901"]
[Result "1-0"]
[Round "10"]
[TimeControl "180+1"]
[Date "2022.03.09"]
[WhiteClock "0:00:09"]
[BlackClock "0:00:02"]

1. c4 {[%clk 0:03:00]}  c5 {[%clk 0:02:58]} 2. Nf3 {[%clk 0:03:00]}  Nf6 {[%clk 0:02:58]} 3. Nc3 {[%clk 0:03:00]}  d5 {[%clk 0:02:56]} 4. cxd5 {[%clk 0:02:57]}  Nxd5 {[%clk 0:02:55]} 5. e4 {[%clk 0:02:57]}  Nc7 {[%clk 0:02:52]} 6. d4 {[%clk 0:02:46]}  cxd4 {[%clk 0:02:50]} 7. Qxd4 {[%clk 0:02:46]}  Nc6 {[%clk 0:02:45]} 8. Qxd8+ {[%clk 0:02:46]}  Nxd8 {[%clk 0:02:41]} 9. Bf4 {[%clk 0:02:41]}  Nde6 {[%clk 0:02:22]} 10. Be3 {[%clk 0:02:38]}  Bd7 {[%clk 0:02:19]} 11. O-O-O {[%clk 0:02:37]}  f6 {[%clk 0:02:08]} 12. Bc4 {[%clk 0:02:34]}  Nd8 {[%clk 0:01:46]} 13. e5 {[%clk 0:02:24]}  b5 {[%clk 0:01:37]} 14. Bb3 {[%clk 0:02:21]}  e6 {[%clk 0:01:29]} 15. Ne4 {[%clk 0:02:05]}  Nb7 {[%clk 0:01:09]} 16. exf6 {[%clk 0:01:53]}  O-O-O {[%clk 0:00:59]} 17. Ne5 {[%clk 0:01:45]}  Nd5 {[%clk 0:00:38]} 18. Nf7 {[%clk 0:01:34]}  Bb4 {[%clk 0:00:25]} 19. Nxh8 {[%clk 0:01:29]}  Rxh8 {[%clk 0:00:24]} 20. fxg7 {[%clk 0:01:29]}  Rg8 {[%clk 0:00:24]} 21. Bxd5 {[%clk 0:01:13]}  exd5 {[%clk 0:00:23]} 22. Nf6 {[%clk 0:01:06]}  Rxg7 {[%clk 0:00:21]} 23. Nxd5 {[%clk 0:01:05]}  Bc5 {[%clk 0:00:15]} 24. g3 {[%clk 0:01:01]}  Rf7 {[%clk 0:00:09]} 25. Bxc5 {[%clk 0:00:51]}  Nxc5 {[%clk 0:00:09]} 26. Nf4 {[%clk 0:00:51]}  Bc6 {[%clk 0:00:08]} 27. Rhe1 {[%clk 0:00:49]}  Kb7 {[%clk 0:00:08]} 28. Rd2 {[%clk 0:00:28]}  Bf3 {[%clk 0:00:05]} 29. Re3 {[%clk 0:00:22]}  Bc6 {[%clk 0:00:04]} 30. f3 {[%clk 0:00:19]}  a5 {[%clk 0:00:02]} 31. Rc2 {[%clk 0:00:18]}  Kb6 {[%clk 0:00:02]} 32. Rxc5 {[%clk 0:00:17]}  Kxc5 {[%clk 0:00:02]} 33. Kd2 {[%clk 0:00:13]}  Kb6 {[%clk 0:00:02]} 34. Re6 {[%clk 0:00:12]}  Rd7+ {[%clk 0:00:02]} 35. Ke3 {[%clk 0:00:12]}  Kc5 {[%clk 0:00:02]} 36. h4 {[%clk 0:00:10]}  Rd1 {[%clk 0:00:02]} 37. g4 {[%clk 0:00:10]}  Re1+ {[%clk 0:00:02]} 38. Ne2 {[%clk 0:00:10]}  Rb1 {[%clk 0:00:02]} 39. b3 {[%clk 0:00:09]}  Rb2 {[%clk 0:00:02]} 40. Re5+ {[%clk 0:00:10]}  Bd5 {[%clk 0:00:02]} 41. Nf4 {[%clk 0:00:09]} 1-0


[Site "https://www.chess.com"]

[Event "Titled Tuesday Blitz March 08 Early 2022"]
[White "Roman, Rodrigo"]
[Black "Fiorito, Fabian"]
[WhiteFideId "3701220"]
[BlackFideId "100200"]
[WhiteElo "2001"]
[BlackElo "2395"]
[Result "0-1"]
[Round "10"]
[TimeControl "180+1"]
[Date "2022.03.09"]
[WhiteClock "0:02:05"]
[BlackClock "0:02:08"]

1. e4 {[%clk 0:03:00]}  c6 {[%clk 0:02:57]} 2. e5 {[%clk 0:03:00]}  d5 {[%clk 0:02:56]} 3. exd6 {[%clk 0:03:00]}  exd6 {[%clk 0:02:56]} 4. d4 {[%clk 0:03:00]}  d5 {[%clk 0:02:57]} 5. Nf3 {[%clk 0:03:00]}  Nf6 {[%clk 0:02:57]} 6. Bd3 {[%clk 0:03:01]}  Bd6 {[%clk 0:02:55]} 7. Nbd2 {[%clk 0:02:55]}  O-O {[%clk 0:02:54]} 8. O-O {[%clk 0:02:55]}  Bg4 {[%clk 0:02:52]} 9. b3 {[%clk 0:02:55]}  Nbd7 {[%clk 0:02:51]} 10. Bb2 {[%clk 0:02:55]}  Qc7 {[%clk 0:02:50]} 11. h3 {[%clk 0:02:54]}  Bh5 {[%clk 0:02:50]} 12. Re1 {[%clk 0:02:52]}  Rfe8 {[%clk 0:02:50]} 13. Re2 {[%clk 0:02:48]}  Bf4 {[%clk 0:02:47]} 14. Rxe8+ {[%clk 0:02:43]}  Rxe8 {[%clk 0:02:46]} 15. Nf1 {[%clk 0:02:41]}  Ne4 {[%clk 0:02:43]} 16. g4 {[%clk 0:02:36]}  Bg6 {[%clk 0:02:39]} 17. Nh4 {[%clk 0:02:30]}  Qd6 {[%clk 0:02:30]} 18. Qf3 {[%clk 0:02:28]}  Ng5 {[%clk 0:02:29]} 19. Qg2 {[%clk 0:02:27]}  Bxd3 {[%clk 0:02:26]} 20. cxd3 {[%clk 0:02:27]}  g6 {[%clk 0:02:26]} 21. Nf3 {[%clk 0:02:24]}  Re2 {[%clk 0:02:20]} 22. Rb1 {[%clk 0:02:19]}  Qf6 {[%clk 0:02:16]} 23. Ng3 {[%clk 0:02:17]}  Bxg3 {[%clk 0:02:16]} 24. Nxg5 {[%clk 0:02:15]}  Bxf2+ {[%clk 0:02:15]} 25. Kh1 {[%clk 0:02:13]}  Qxg5 {[%clk 0:02:13]} 26. Qf3 {[%clk 0:02:05]}  Qe3 {[%clk 0:02:08]} 0-1


[Site "https://www.chess.com"]

[Event "Titled Tuesday Blitz March 08 Early 2022"]
[White "Romanchuk, Viktor"]
[Black "Ibraev, Vasilij"]
[WhiteFideId "14109271"]
[BlackFideId "4175190"]
[WhiteElo "2242"]
[BlackElo "2121"]
[Result "1-0"]
[Round "10"]
[TimeControl "180+1"]
[Date "2022.03.09"]
[WhiteClock "0:02:07"]
[BlackClock "0:00:18"]

1. d4 {[%clk 0:03:00]}  d5 {[%clk 0:02:56]} 2. c4 {[%clk 0:03:00]}  c6 {[%clk 0:02:56]} 3. Nc3 {[%clk 0:03:00]}  e6 {[%clk 0:02:55]} 4. e3 {[%clk 0:02:59]}  f5 {[%clk 0:02:53]} 5. Bd3 {[%clk 0:02:58]}  Nf6 {[%clk 0:02:52]} 6. f3 {[%clk 0:02:58]}  Bd6 {[%clk 0:02:40]} 7. Nge2 {[%clk 0:02:58]}  O-O {[%clk 0:02:32]} 8. Qc2 {[%clk 0:02:58]}  g6 {[%clk 0:02:23]} 9. O-O {[%clk 0:02:57]}  Nbd7 {[%clk 0:02:17]} 10. Bd2 {[%clk 0:02:57]}  Qe7 {[%clk 0:02:14]} 11. e4 {[%clk 0:02:56]}  fxe4 {[%clk 0:02:07]} 12. fxe4 {[%clk 0:02:57]}  dxe4 {[%clk 0:01:51]} 13. Nxe4 {[%clk 0:02:58]}  Nxe4 {[%clk 0:01:47]} 14. Bxe4 {[%clk 0:02:59]}  Nf6 {[%clk 0:01:43]} 15. Bh6 {[%clk 0:02:43]}  Rf7 {[%clk 0:01:28]} 16. Bxg6 {[%clk 0:02:36]}  hxg6 {[%clk 0:00:59]} 17. Qxg6+ {[%clk 0:02:37]}  Kh8 {[%clk 0:00:58]} 18. Bg5 {[%clk 0:02:35]}  Bd7 {[%clk 0:00:46]} 19. Bxf6+ {[%clk 0:02:20]}  Rxf6 {[%clk 0:00:42]} 20. Rxf6 {[%clk 0:02:14]}  Rg8 {[%clk 0:00:32]} 21. Qh5+ {[%clk 0:02:12]}  Kg7 {[%clk 0:00:19]} 22. Rg6+ {[%clk 0:02:09]}  Kf8 {[%clk 0:00:18]} 23. Rf1+ {[%clk 0:02:07]} 1-0


[Site "https://www.chess.com"]